bitfinex/quotes_BTCUSD_20250208
["timestamp","ask_amount","ask_price","bid_price","bid_amount"]
[1739047216845,0.01944717,96564.0,96563.0,0.51523279]
[1739047217251,0.01944717,96564.0,96563.0,0.46741125]
[1739047217686,0.0001067,96564.0,96563.0,0.46741125]
[1739047218104,0.1554437,96564.0,96563.0,0.46741125]
[1739047218308,0.0001067,96564.0,96563.0,0.41871125]
[1739047218633,0.1554437,96564.0,96563.0,0.41871125]
[1739047219020,0.1554437,96564.0,96563.0,0.41771125]
[1739047219220,0.1554437,96564.0,96563.0,0.40562407]
[1739047219376,0.16652986,96564.0,96563.0,0.41671125]
[1739047219576,0.16652986,96564.0,96563.0,0.08741125]
[1739047219981,0.16652986,96564.0,96563.0,0.07532407]
[1739047221840,0.0001067,96564.0,96563.0,0.07532407]
[1739047222052,0.1554437,96564.0,96563.0,0.07532407]
[1739047222673,0.1554437,96564.0,96563.0,0.08741125]
[1739047223051,0.1554437,96564.0,96563.0,0.07532407]
[1739047226218,0.17478845,96564.0,96563.0,0.07532407]
[1739047232967,0.1554437,96564.0,96563.0,0.07532407]
[1739047240084,0.0001067,96564.0,96563.0,0.12112407]
[1739047240284,0.0001067,96564.0,96563.0,0.13248161]
[1739047246866,0.1554437,96564.0,96563.0,0.13248161]
[1739047247220,0.1554437,96564.0,96563.0,0.12112407]
[1739047247586,0.1554437,96564.0,96563.0,0.13248161]
[1739047257240,0.01086647,96567.0,96563.0,0.13248161]
[1739047257587,0.155337,96564.0,96563.0,0.13248161]
[1739047257841,0.15556108,96564.0,96563.0,0.12112407]
[1739047258021,0.00022408,96564.0,96563.0,0.12112407]
[1739047258225,0.00022408,96564.0,96563.0,0.13248161]
[1739047259207,0.00022408,96564.0,96563.0,0.13348161]
[1739047259518,0.155332,96568.0,96565.0,0.0751]
[1739047259720,0.155329,96570.0,96565.0,0.0751]
[1739047259932,0.155333,96567.0,96565.0,0.0751]
[1739047260930,0.00013613,96571.0,96565.0,0.08840235]
[1739047261412,0.15546213,96571.0,96565.0,0.0751]
[1739047261858,0.15546213,96571.0,96566.0,0.01135491]
[1739047262111,0.15546213,96571.0,96567.0,0.0757]
[1739047262596,0.15546213,96571.0,96568.0,0.01135316]
[1739047262970,0.15546213,96571.0,96569.0,0.00054192]
[1739047263290,0.155327,96570.0,96569.0,0.0118942]
[1739047265529,0.155327,96570.0,96569.0,0.00054192]
[1739047266557,0.25783065,96570.0,96569.0,0.00054192]
[1739047270040,0.155335,96565.0,96564.0,0.00022407]
[1739047272159,0.155335,96565.0,96564.0,0.00122407]
[1739047273098,0.155335,96565.0,96564.0,0.00022407]
[1739047283180,0.155334,96566.0,96564.0,0.00022407]
[1739047283750,0.155332,96567.0,96564.0,0.00022407]
[1739047283965,0.30971535,96570.0,96564.0,0.00022407]
[1739047284399,0.155332,96567.0,96564.0,0.00022407]
[1739047285994,0.155332,96567.0,96565.0,0.127]
[1739047286369,0.0001067,96570.0,96566.0,0.0792]
[1739047286583,0.0001067,96570.0,96566.0,0.09055491]
[1739047288350,0.155329,96569.0,96566.0,0.09055491]
[1739047288769,0.0001067,96570.0,96566.0,0.09055491]
[1739047288770,0.15533,96568.0,96566.0,0.09055491]
[1739047289360,0.1554347,96570.0,96566.0,0.09055491]
[1739047290117,0.155332,96568.0,96566.0,0.09055491]
[1739047290406,0.15533,96569.0,96566.0,0.09055491]
[1739047290609,0.155329,96569.0,96566.0,0.09055491]
[1739047290823,0.155331,96568.0,96566.0,0.09055491]
[1739047292326,0.1554347,96570.0,96566.0,0.09055491]
[1739047293431,0.155331,96568.0,96566.0,0.09055491]
[1739047295723,0.0001067,96570.0,96566.0,0.09055491]
[1739047295895,0.155332,96568.0,96566.0,0.09055491]
[1739047296327,0.155332,96567.0,96566.0,0.09055491]
[1739047296688,0.0001067,96570.0,96566.0,0.09055491]
[1739047296891,0.155332,96567.0,96566.0,0.09055491]
[1739047298316,0.17473433,96567.0,96566.0,0.09055491]
[1739047307077,0.155332,96567.0,96566.0,0.09055491]
[1739047312403,0.0001067,96570.0,96567.0,0.0809]
[1739047312826,0.15533,96569.0,96568.0,0.01135316]
[1739047315524,0.15533,96569.0,96568.0,0.09225316]
[1739047321839,0.155329,96569.0,96568.0,0.09225316]
[1739047329547,0.17472814,96569.0,96568.0,0.09225316]
[1739047330125,0.155329,96569.0,96568.0,0.09225316]
[1739047332338,0.155329,96569.0,96568.0,0.09235986]
[1739047352327,0.21339011,96569.0,96568.0,0.09235986]
[1739047352551,0.155329,96569.0,96568.0,0.01145986]
[1739047353059,0.155329,96569.0,96568.0,0.0001067]
[1739047358634,0.40783265,96569.0,96568.0,0.0001067]
[1739047358862,0.4132401,96569.0,96568.0,0.0001067]
[1739047359703,0.43264323,96569.0,96568.0,0.0001067]
[1739047359837,0.52361316,96569.0,96568.0,0.0001067]
[1739047360466,0.52561316,96569.0,96568.0,0.0011067]
[1739047361227,0.52361316,96569.0,96568.0,0.0011067]
[1739047361379,0.50621003,96569.0,96568.0,0.0011067]
[1739047365635,0.31825996,96569.0,96568.0,0.0011067]
[1739047366531,0.47358896,96569.0,96568.0,0.0011067]
[1739047366890,0.49295146,96569.0,96568.0,0.0011067]
[1739047367437,0.40198153,96569.0,96568.0,0.0011067]
[1739047368063,0.38261903,96569.0,96568.0,0.0011067]
[1739047374128,0.40197071,96569.0,96568.0,0.0011067]
[1739047378531,0.40219479,96569.0,96568.0,0.0011067]
[1739047383482,0.43321102,96569.0,96568.0,0.0011067]
[1739047384022,0.52114808,96569.0,96568.0,0.0011067]
[1739047384227,0.60410422,96569.0,96568.0,0.0011067]
[1739047384556,0.61410422,96569.0,96568.0,0.0011067]
[1739047385163,0.61210422,96569.0,96568.0,0.0001067]
[1739047385588,0.61410422,96569.0,96568.0,0.00098394]
[1739047385794,0.58504458,96569.0,96568.0,0.00198394]
[1739047386002,0.58304458,96569.0,96568.0,0.001]
[1739047386375,0.58504458,96569.0,96568.0,0.002]
[1739047386584,0.55402835,96569.0,96568.0,0.002]
[1739047388996,0.87422835,96569.0,96568.0,0.002]
[1739047390181,0.87422835,96569.0,96568.0,0.0021067]
[1739047394067,0.9052048,96569.0,96568.0,0.0021067]
[1739047395271,1.74358528,96569.0,96568.0,0.0021067]
[1739047395471,0.315332,96567.0,96566.0,7e-07]
[1739047395678,0.325337,96564.0,96563.0,8.4e-07]
[1739047395905,0.305363,96548.0,96547.0,0.00022407]
[1739047396114,0.41538665,96548.0,96547.0,0.01379195]
[1739047396304,0.41538665,96548.0,96547.0,0.00022407]
[1739047396624,0.42079571,96548.0,96547.0,0.00022407]
[1739047396825,0.44014739,96548.0,96547.0,0.00022407]
[1739047397664,0.56038783,96548.0,96547.0,0.00022407]
[1739047397873,0.59134056,96548.0,96547.0,0.00022407]
[1739047398286,0.59134056,96548.0,96547.0,0.00122407]
[1739047398502,0.60634056,96548.0,96547.0,0.00222407]
[1739047401151,0.57538783,96548.0,96547.0,0.00222407]
[1739047401849,0.59591149,96548.0,96547.0,0.00222407]
[1739047403043,0.49867105,96548.0,96547.0,0.00222407]
[1739047405616,0.50915654,96548.0,96547.0,0.00222407]
[1739047416752,0.50915654,96548.0,96547.0,0.05222407]
[1739047419593,0.47863654,96548.0,96547.0,0.05222407]
[1739047419802,0.48615654,96548.0,96547.0,0.17952407]
[1739047420727,0.46680486,96548.0,96547.0,0.17952407]
[1739047421342,0.56930851,96548.0,96547.0,0.17952407]
[1739047421600,0.45928486,96548.0,96547.0,0.17952407]
[1739047421807,0.46680486,96548.0,96547.0,0.17952407]
[1739047425006,0.46680486,96548.0,96547.0,0.19309195]
[1739047426309,0.45928486,96548.0,96547.0,0.19309195]
[1739047426515,0.03089455,96548.0,96547.0,0.19309195]
[1739047426716,0.18625755,96548.0,96547.0,0.19309195]
[1739047427306,0.17725755,96548.0,96547.0,0.19209195]
[1739047427755,0.19062004,96548.0,96547.0,0.19109195]
[1739047427961,0.1920082,96550.0,96547.0,0.10969195]
[1739047428171,0.001,96548.0,96547.0,0.10969195]
[1739047428584,0.156363,96548.0,96547.0,0.10969195]
[1739047428724,0.159363,96548.0,96547.0,0.18519195]
[1739047428929,0.158363,96548.0,96547.0,0.18519195]
[1739047429134,0.155363,96548.0,96547.0,0.18519195]
[1739047429751,0.157363,96548.0,96547.0,0.18519195]
[1739047430903,0.158363,96548.0,96547.0,0.18519195]
[1739047441064,0.158363,96548.0,96547.0,0.17162407]
[1739047442071,0.158363,96548.0,96547.0,0.18519195]
[1739047445589,0.003,96548.0,96547.0,0.20371114]
[1739047445788,0.158363,96548.0,96547.0,0.20371114]
[1739047446010,0.158363,96548.0,96547.0,0.18519195]
[1739047447233,0.155363,96548.0,96547.0,0.18519195]
[1739047447617,0.156363,96548.0,96547.0,0.17162407]
[1739047448007,0.155363,96548.0,96547.0,0.18519195]
[1739047448668,0.157363,96548.0,96547.0,0.18519195]
[1739047449259,0.155363,96548.0,96547.0,0.18519195]
[1739047451572,0.156363,96548.0,96547.0,0.18519195]
[1739047451992,0.155363,96548.0,96547.0,0.18519195]
[1739047452530,0.157363,96548.0,96547.0,0.18519195]
[1739047452931,0.155363,96548.0,96547.0,0.18519195]
[1739047454226,0.001,96548.0,96547.0,0.18519195]
[1739047454452,0.156363,96548.0,96547.0,0.18519195]
[1739047454632,0.155363,96548.0,96547.0,0.18519195]
[1739047455044,0.157363,96548.0,96547.0,0.18519195]
[1739047455793,0.155363,96548.0,96547.0,0.18519195]
[1739047456082,0.156363,96548.0,96547.0,0.17162407]
[1739047457588,0.155363,96548.0,96547.0,0.17162407]
[1739047457881,0.157363,96548.0,96547.0,0.17162407]
[1739047458331,0.155363,96548.0,96547.0,0.17162407]
[1739047458653,0.156363,96548.0,96547.0,0.17162407]
[1739047459046,0.155363,96548.0,96547.0,0.17162407]
[1739047459451,0.157363,96548.0,96547.0,0.17162407]
[1739047459598,0.157363,96548.0,96547.0,0.18547718]
[1739047461389,0.155363,96548.0,96547.0,0.18547718]
[1739047461787,0.156363,96548.0,96547.0,0.18547718]
[1739047462132,0.155363,96548.0,96547.0,0.18547718]
[1739047462555,0.157363,96548.0,96547.0,0.18547718]
[1739047462962,0.155363,96548.0,96547.0,0.18547718]
[1739047463185,0.156363,96548.0,96547.0,0.18547718]
[1739047464503,0.155363,96548.0,96547.0,0.18547718]
[1739047464701,0.157363,96548.0,96547.0,0.18547718]
[1739047465091,0.155363,96548.0,96547.0,0.18547718]
[1739047465498,0.156363,96548.0,96547.0,0.18547718]
[1739047465899,0.155363,96548.0,96547.0,0.18547718]
[1739047466353,0.157363,96548.0,96547.0,0.18547718]
[1739047467567,0.155363,96548.0,96547.0,0.18547718]
[1739047467775,0.156363,96548.0,96547.0,0.18547718]
[1739047468322,0.155363,96548.0,96547.0,0.18547718]
[1739047468573,0.157363,96548.0,96547.0,0.18547718]
[1739047468945,0.48136173,96548.0,96547.0,0.06407718]
[1739047469145,0.48136173,96548.0,96547.0,0.05022407]
[1739047469368,0.50172489,96548.0,96547.0,0.05022407]
[1739047470437,0.42822981,96548.0,96547.0,0.05022407]
[1739047470659,0.45022981,96548.0,96547.0,0.05022407]
[1739047470863,0.45222981,96548.0,96547.0,0.05022407]
[1739047471060,0.45222981,96548.0,96547.0,0.05122407]
[1739047471061,0.45822981,96548.0,96547.0,0.05122407]
[1739047471493,0.45622981,96548.0,96547.0,0.05122407]
[1739047471696,0.46522981,96548.0,96547.0,0.05222407]
[1739047478970,0.44586665,96548.0,96547.0,0.05222407]
[1739047479969,0.46518349,96548.0,96547.0,0.05222407]
[1739047480500,0.57309589,96548.0,96547.0,0.02232616]
[1739047483499,0.57309589,96548.0,96547.0,0.02243286]
[1739047495036,0.44759224,96548.0,96547.0,0.09973286]
[1739047495269,0.45533632,96548.0,96547.0,0.09973286]
[1739047497893,0.44781632,96548.0,96547.0,0.09973286]
[1739047498053,0.33990392,96548.0,96547.0,0.14523286]
[1739047502981,0.37086277,96548.0,96547.0,0.14523286]
[1739047503528,0.45145983,96548.0,96547.0,0.14523286]
[1739047504254,0.37086277,96548.0,96547.0,0.14523286]
[1739047513121,0.33990392,96548.0,96547.0,0.14523286]
[1739047513787,0.03454092,96548.0,96547.0,0.14523286]
[1739047514279,0.33990392,96548.0,96547.0,0.14523286]
[1739047514664,0.33090392,96548.0,96547.0,0.14423286]
[1739047514832,0.32490392,96548.0,96547.0,0.14323286]
[1739047515001,0.33390392,96548.0,96547.0,0.14423286]
[1739047515201,0.33690392,96548.0,96547.0,0.14423286]
[1739047515402,0.32790392,96548.0,96547.0,0.14323286]
[1739047515820,0.33290392,96548.0,96547.0,0.14423286]
[1739047520251,0.36382645,96548.0,96547.0,0.14423286]
[1739047524372,0.44296817,96548.0,96547.0,0.14423286]
[1739047525320,0.54547182,96548.0,96547.0,0.14423286]
[1739047527436,0.51454929,96548.0,96547.0,0.14423286]
[1739047528072,0.43540757,96548.0,96547.0,0.14423286]
[1739047529573,0.17754092,96548.0,96547.0,0.14423286]
[1739047538293,0.15822408,96548.0,96547.0,0.14423286]
[1739047544117,0.31358708,96548.0,96547.0,0.14423286]
[1739047545926,0.15822408,96548.0,96547.0,0.14423286]
[1739047546112,0.31358708,96548.0,96547.0,0.14423286]
[1739047547320,0.10367834,96548.0,96547.0,0.14423286]
[1739047547527,0.00022408,96550.0,96547.0,0.14423286]
[1739047548440,0.00022408,96550.0,96547.0,0.14323286]
[1739047548670,0.00622408,96550.0,96548.0,0.01433645]
[1739047548841,0.155361,96549.0,96548.0,0.02865974]
[1739047549041,0.155361,96549.0,96548.0,0.01433645]
[1739047550388,0.160361,96549.0,96548.0,0.01433645]
[1739047551351,0.162361,96549.0,96548.0,0.01433645]
[1739047552150,0.007,96549.0,96548.0,0.01433645]
[1739047552559,0.002,96549.0,96548.0,0.01433645]
[1739047553057,0.005,96549.0,96548.0,0.01433645]
[1739047553516,0.155361,96549.0,96548.0,0.01433645]
[1739047553700,0.157361,96549.0,96548.0,0.01433645]
[1739047553896,0.15958508,96549.0,96548.0,0.01433645]
[1739047554515,0.00422408,96549.0,96548.0,0.01433645]
[1739047555061,0.00622408,96549.0,96548.0,0.01433645]
[1739047555391,0.00422408,96549.0,96548.0,0.01433645]
[1739047555820,0.00722408,96549.0,96548.0,0.01433645]
[1739047556071,0.00722408,96549.0,96548.0,0.09253645]
[1739047556637,0.00322408,96549.0,96548.0,0.09253645]
[1739047557009,0.00422408,96549.0,96548.0,0.09253645]
[1739047558346,0.00422408,96549.0,96548.0,0.10838338]
[1739047558723,0.00422408,96549.0,96548.0,0.15891907]
[1739047559311,0.00122408,96549.0,96548.0,0.15891907]
[1739047559534,0.00322408,96549.0,96548.0,0.15891907]
[1739047559733,0.00222408,96549.0,96548.0,0.15891907]
[1739047560295,0.00222408,96549.0,96548.0,0.15561797]
[1739047560497,0.00222408,96549.0,96548.0,0.16061797]
[1739047561729,0.00022408,96549.0,96548.0,0.16061797]
[1739047561965,0.00122408,96549.0,96548.0,0.16661797]
[1739047566737,0.00122408,96549.0,96548.0,0.16672467]
[1739047571921,0.00022408,96549.0,96548.0,0.16072467]
[1739047572140,0.00022408,96549.0,96548.0,0.14714315]
[1739047572338,0.00122408,96549.0,96548.0,0.15314315]
[1739047572924,0.00122408,96549.0,96548.0,0.14814315]
[1739047573283,0.00122408,96549.0,96548.0,0.15314315]
[1739047573905,0.00122408,96549.0,96548.0,0.15714315]
[1739047574820,0.00022408,96549.0,96548.0,0.15114315]
[1739047576053,0.15658508,96549.0,96548.0,0.10764315]
[1739047576481,0.15558508,96549.0,96548.0,0.10164315]
[1739047576689,0.00022408,96549.0,96548.0,0.09264315]
[1739047576894,0.00022408,96549.0,96548.0,0.09564315]
[1739047577105,0.00022408,96549.0,96548.0,0.09764315]
[1739047577474,0.00022408,96549.0,96548.0,0.09264315]
[1739047577716,0.00022408,96549.0,96548.0,0.09664315]
[1739047579341,0.01247172,96549.0,96548.0,0.09664315]
[1739047584018,0.01247172,96549.0,96548.0,0.01844315]
[1739047588050,0.03180258,96549.0,96548.0,0.01844315]
[1739047588742,0.01247172,96549.0,96548.0,0.01844315]
[1739047591282,0.03180336,96549.0,96548.0,0.01844315]
[1739047593659,0.06273434,96549.0,96548.0,0.01844315]
[1739047595616,0.22331853,96549.0,96548.0,0.01844315]
[1739047595905,0.32059899,96549.0,96548.0,0.01844315]
[1739047596123,0.32059899,96549.0,96548.0,0.0041067]
[1739047596329,0.47059899,96549.0,96548.0,0.0041067]
[1739047596530,0.4989934,96549.0,96548.0,0.0041067]
[1739047596891,0.51930845,96549.0,96548.0,0.0021067]
[1739047597085,0.6218121,96549.0,96548.0,0.0021067]
[1739047597318,0.6248121,96549.0,96548.0,0.0001067]
[1739047597517,0.6298121,96549.0,96548.0,0.0011067]
[1739047597717,0.60488112,96549.0,96548.0,0.0011067]
[1739047598115,0.59688112,96549.0,96548.0,0.0001067]
[1739047598320,0.60488112,96549.0,96548.0,0.0011067]
[1739047599494,0.61088112,96549.0,96548.0,0.0011067]
[1739047601598,0.50837747,96549.0,96548.0,0.0011067]
[1739047605360,0.48904583,96549.0,96548.0,0.0011067]
[1739047613655,0.50833049,96549.0,96548.0,0.0011067]
[1739047615443,0.51833049,96549.0,96548.0,0.0011067]
[1739047615643,1.85152685,96549.0,96548.0,7e-07]
[1739047615844,0.305379,96538.0,96536.0,0.0001068]
[1739047616054,0.75108265,96538.0,96536.0,0.0001068]
[1739047616276,2.32067165,96538.0,96536.0,0.0001068]
[1739047616481,0.40490936,96537.0,96536.0,8e-07]
[1739047616680,3.13777545,96537.0,96536.0,8e-07]
[1739047616890,0.62393811,96537.0,96536.0,8e-07]
[1739047617675,0.64193811,96537.0,96536.0,8e-07]
[1739047617855,0.63293811,96537.0,96536.0,8e-07]
[1739047618382,0.305413,96517.0,96510.0,0.1229]
[1739047618588,0.44597795,96517.0,96516.0,0.00015185]
[1739047618723,0.44597795,96517.0,96516.0,0.01464199]
[1739047618925,0.46526261,96517.0,96516.0,0.00015185]
[1739047620090,0.47326261,96517.0,96516.0,0.00015185]
[1739047620796,0.47826261,96517.0,96516.0,0.00015185]
[1739047621429,0.50126261,96517.0,96516.0,0.00015185]
[1739047621632,0.52927168,96517.0,96516.0,0.00015185]
[1739047621975,0.85947168,96517.0,96516.0,0.00015185]
[1739047622343,0.88198437,96517.0,96516.0,8.5e-07]
[1739047622579,0.89234807,96517.0,96516.0,8.5e-07]
[1739047622783,0.89734807,96517.0,96516.0,8.5e-07]
[1739047622994,0.89634807,96517.0,96516.0,0.00100085]
[1739047623173,0.8277977,96517.0,96516.0,0.00100085]
[1739047623397,0.8367977,96517.0,96516.0,0.00010755]
[1739047623507,0.8457977,96517.0,96516.0,0.00110755]
[1739047623706,0.81751304,96517.0,96516.0,0.00110755]
[1739047624102,0.82651304,96517.0,96516.0,0.00110755]
[1739047624284,0.92201669,96517.0,96516.0,0.00110755]
[1739047624512,0.90401669,96517.0,96516.0,0.00010755]
[1739047624788,0.91301669,96517.0,96516.0,0.00110755]
[1739047624988,0.92201669,96517.0,96516.0,0.00110755]
[1739047625998,0.91301669,96517.0,96516.0,0.00010755]
[1739047626145,0.90401669,96517.0,96516.0,0.00010755]
[1739047626356,0.91301669,96517.0,96516.0,0.00110755]
[1739047626571,0.91301669,96517.0,96516.0,0.00010755]
[1739047627023,0.92201669,96517.0,96516.0,0.00110755]
[1739047627703,0.91201669,96517.0,96516.0,0.00110755]
[1739047627909,0.92201669,96517.0,96516.0,0.00110755]
[1739047628446,1.02201669,96517.0,96516.0,0.00110755]
[1739047628658,1.02201669,96517.0,96516.0,5.5e-07]
[1739047630391,0.305433,96504.0,96503.0,0.0759067]
[1739047630526,0.45920305,96504.0,96503.0,0.0759067]
[1739047631027,0.45920305,96504.0,96503.0,0.08896038]
[1739047631631,0.46620305,96504.0,96503.0,0.08996038]
[1739047632152,0.46620305,96504.0,96503.0,0.0769067]
[1739047632681,0.47520305,96504.0,96503.0,0.0769067]
[1739047633612,0.49445012,96504.0,96503.0,0.0769067]
[1739047635776,0.31564935,96504.0,96503.0,0.0769067]
[1739047635977,0.48299264,96504.0,96503.0,0.0769067]
[1739047637921,0.51380959,96504.0,96503.0,0.0769067]
[1739047638336,0.46254319,96504.0,96503.0,0.0769067]
[1739047638961,0.43172624,96504.0,96503.0,0.0769067]
[1739047641468,0.46256798,96504.0,96503.0,0.0769067]
[1739047642727,0.43172624,96504.0,96503.0,0.0769067]
[1739047643570,0.43172624,96504.0,96503.0,0.0011067]
[1739047643778,0.53433809,96504.0,96503.0,0.0011067]
[1739047647490,0.53456237,96504.0,96503.0,0.0011067]
[1739047650525,0.56552792,96504.0,96503.0,0.0011067]
[1739047650726,0.305443,96498.0,96497.0,6.369e-05]
[1739047650943,0.40794665,96498.0,96497.0,6.369e-05]
[1739047651293,0.5104503,96498.0,96497.0,6.369e-05]
[1739047651445,0.305448,96495.0,96494.0,0.0805]
[1739047651634,0.40795165,96495.0,96494.0,0.0805]
[1739047652039,0.42719872,96495.0,96494.0,0.0805]
[1739047652798,0.43319872,96495.0,96494.0,0.0805]
[1739047653027,0.53043916,96495.0,96494.0,0.0805]
[1739047653882,0.53443916,96495.0,96494.0,0.0805]
[1739047654633,0.43719872,96495.0,96494.0,0.0805]
[1739047659155,0.43719872,96495.0,96494.0,0.0806068]
[1739047666126,0.41795165,96495.0,96494.0,0.0806068]
[1739047666904,0.42547165,96495.0,96494.0,0.0806068]
[1739047672378,0.01,96495.0,96494.0,0.1282068]
[1739047673692,0.165448,96495.0,96494.0,0.1282068]
[1739047676662,0.18478923,96495.0,96494.0,0.1282068]
[1739047677894,0.18478923,96495.0,96494.0,0.14037691]
[1739047678616,0.17878923,96495.0,96494.0,0.14037691]
[1739047678973,0.18278923,96495.0,96494.0,0.14037691]
[1739047679557,0.17478923,96495.0,96494.0,0.14037691]
[1739047679941,0.02234123,96495.0,96494.0,0.14037691]
[1739047680049,0.17778923,96495.0,96494.0,0.14037691]
[1739047680564,0.02234123,96495.0,96494.0,0.1414132]
[1739047680730,0.02234123,96495.0,96494.0,0.2968632]
[1739047680934,0.02234123,96495.0,96494.0,0.29582691]
[1739047681334,0.02034123,96495.0,96494.0,0.14037691]
[1739047681539,0.02034123,96495.0,96494.0,0.14141304]
[1739047681763,0.01934123,96495.0,96494.0,0.14141304]
[1739047682309,0.002,96495.0,96494.0,0.14141304]
[1739047682527,0.002,96495.0,96494.0,0.29686304]
[1739047682696,0.00022428,96497.0,96496.0,0.1249]
[1739047683038,0.00022428,96497.0,96496.0,0.13810448]
[1739047684398,0.00222428,96497.0,96496.0,0.14610448]
[1739047700441,0.0215742,96497.0,96496.0,0.14610448]
[1739047701434,0.00222428,96497.0,96496.0,0.14610448]
[1739047702225,0.00122428,96497.0,96496.0,0.14210448]
[1739047702814,0.00222428,96497.0,96496.0,0.14510448]
[1739047703236,0.00122428,96497.0,96496.0,0.14110448]
[1739047703415,0.02058782,96497.0,96496.0,0.14110448]
[1739047703573,0.02058782,96497.0,96496.0,0.14406835]
[1739047703776,0.02058782,96497.0,96496.0,0.14006835]
[1739047704206,0.02158782,96497.0,96496.0,0.14406835]
[1739047704949,0.02058782,96497.0,96496.0,0.14006835]
[1739047705335,0.02058782,96497.0,96496.0,0.14106835]
[1739047705759,0.02158782,96497.0,96496.0,0.14406835]
[1739047706322,0.02158782,96497.0,96496.0,0.1451045]
[1739047706533,0.02158782,96497.0,96496.0,0.14406835]
[1739047706747,0.02058782,96497.0,96496.0,0.14006835]
[1739047706898,0.02058782,96497.0,96496.0,0.14117505]
[1739047707322,0.02158782,96497.0,96496.0,0.14417505]
[1739047710458,0.02058782,96497.0,96496.0,0.14117505]
[1739047710621,0.01958782,96497.0,96496.0,0.13717505]
[1739047711638,0.02158782,96497.0,96496.0,0.14417505]
[1739047712858,0.02158782,96497.0,96496.0,0.1452112]
[1739047714391,0.00222428,96497.0,96496.0,0.1452112]
[1739047715182,0.00122428,96497.0,96496.0,0.1422112]
[1739047715620,0.00222428,96497.0,96496.0,0.1452112]
[1739047716425,0.00222428,96497.0,96496.0,0.43556348]
[1739047716787,0.00122428,96497.0,96496.0,0.53303109]
[1739047717080,0.00222428,96497.0,96496.0,0.44616172]
[1739047717763,0.00122428,96497.0,96496.0,0.44216172]
[1739047718148,0.00222428,96497.0,96496.0,0.44616172]
[1739047718466,0.00122428,96497.0,96496.0,0.43916172]
[1739047718676,0.00122428,96497.0,96496.0,0.44416172]
[1739047719638,0.00122428,96497.0,96496.0,0.44316172]
[1739047719639,0.00222428,96497.0,96496.0,0.44316172]
[1739047719892,0.00222428,96497.0,96496.0,0.54566537]
[1739047720056,0.00322428,96497.0,96496.0,0.55366537]
[1739047720265,0.15,96530.0,96497.0,0.0787]
[1739047720468,0.155402,96524.0,96507.0,0.0787]
[1739047720643,0.155402,96524.0,96508.0,0.00103597]
[1739047720846,0.155398,96526.0,96508.0,0.00103597]
[1739047721071,0.155401,96525.0,96509.0,0.01215694]
[1739047721249,0.155401,96525.0,96510.0,0.00103596]
[1739047721436,0.155401,96525.0,96511.0,0.01319114]
[1739047721868,0.207197,96527.0,96511.0,0.01319114]
[1739047722060,0.155398,96527.0,96511.0,0.01319114]
[1739047722265,0.207191,96529.0,96512.0,0.0791]
[1739047722466,0.155398,96526.0,96513.0,0.01318936]
[1739047723479,0.002,96524.0,96513.0,0.01318936]
[1739047723679,0.002,96524.0,96513.0,0.01418936]
[1739047724499,0.1554,96525.0,96513.0,0.01418936]
[1739047724714,0.002,96524.0,96513.0,0.01418936]
[1739047724915,0.002,96524.0,96513.0,0.01318936]
[1739047725294,0.007,96524.0,96513.0,0.01318936]
[1739047725731,0.007,96524.0,96514.0,0.10127893]
[1739047725933,0.007,96524.0,96516.0,0.0784]
[1739047726219,0.002,96524.0,96517.0,0.00103593]
[1739047726424,0.004,96524.0,96518.0,0.00103594]
[1739047727474,0.004,96524.0,96516.0,0.07943595]
[1739047727679,0.004,96524.0,96517.0,0.01214991]
[1739047727886,0.155397,96527.0,96517.0,0.01214991]
[1739047728081,0.155397,96527.0,96516.0,0.07943595]
[1739047728283,0.002,96524.0,96516.0,0.07943595]
[1739047728766,0.155401,96524.0,96517.0,0.01214364]
[1739047729167,0.155401,96524.0,96516.0,0.0784]
[1739047730031,0.002,96524.0,96517.0,0.01214364]
[1739047730264,0.207208,96522.0,96516.0,0.0784]
[1739047730518,0.155409,96519.0,96516.0,0.0784]
[1739047732318,0.05871538,96531.0,96516.0,0.0001067]
[1739047732526,0.155413,96517.0,96516.0,0.0021067]
[1739047732749,0.07579312,96526.0,96516.0,0.0021067]
[1739047732952,0.155411,96519.0,96516.0,0.01425122]
[1739047733182,0.155411,96519.0,96516.0,0.0021067]
[1739047733543,0.155411,96519.0,96516.0,0.0001067]
[1739047733752,0.155412,96518.0,96516.0,0.0001067]
[1739047733936,0.155412,96518.0,96516.0,0.0011067]
[1739047734132,0.155412,96518.0,96516.0,0.0001067]
[1739047735103,0.157412,96518.0,96516.0,0.0001067]
[1739047735460,0.155412,96518.0,96516.0,0.0001067]
[1739047736938,0.155412,96518.0,96516.0,0.0011067]
[1739047737115,0.155412,96518.0,96516.0,0.0001067]
[1739047737724,0.157412,96518.0,96516.0,0.0001067]
[1739047738102,0.155412,96518.0,96516.0,0.0001067]
[1739047738559,0.157412,96518.0,96516.0,0.0001067]
[1739047738892,0.16709962,96518.0,96516.0,0.0001067]
[1739047739331,0.16909962,96518.0,96516.0,0.0001067]
[1739047739937,0.01368762,96518.0,96516.0,0.0001067]
[1739047740500,0.01168762,96518.0,96516.0,0.0001067]
[1739047740910,0.002,96518.0,96516.0,0.0001067]
[1739047741269,0.155409,96519.0,96516.0,0.0001067]
[1739047741643,0.002,96518.0,96516.0,0.0001067]
[1739047742267,0.01153259,96519.0,96516.0,0.0001067]
[1739047742473,0.003,96519.0,96516.0,0.0001067]
[1739047742665,0.004,96519.0,96516.0,0.0001067]
[1739047743244,0.15941,96519.0,96516.0,0.0001067]
[1739047743751,0.15541,96519.0,96516.0,0.0001067]
[1739047743953,0.155408,96520.0,96516.0,0.0001067]
[1739047744103,0.002,96518.0,96516.0,0.0001067]
[1739047744688,0.001,96519.0,96516.0,0.0001067]
[1739047744867,0.004,96519.0,96516.0,0.0001067]
[1739047745446,0.01938959,96518.0,96516.0,0.0001067]
[1739047745859,0.02138959,96518.0,96516.0,0.0001067]
[1739047746451,0.002,96518.0,96516.0,0.0001067]
[1739047747291,0.155408,96520.0,96516.0,0.0001067]
[1739047747452,0.002,96518.0,96516.0,0.0001067]
[1739047747861,0.155408,96520.0,96516.0,0.0001067]
[1739047748273,0.002,96518.0,96516.0,0.0001067]
[1739047748656,0.15541,96519.0,96516.0,0.0001067]
[1739047749077,0.158408,96520.0,96516.0,0.0001067]
[1739047749275,0.15541,96519.0,96516.0,0.0001067]
[1739047750122,0.01157777,96522.0,96516.0,0.0001067]
[1739047750283,0.155413,96517.0,96516.0,0.0001067]
[1739047750647,0.25791665,96517.0,96516.0,0.0001067]
[1739047751604,0.27831175,96517.0,96516.0,0.0001067]
[1739047752005,0.28231175,96517.0,96516.0,0.0001067]
[1739047752641,0.26291665,96517.0,96516.0,0.0001067]
[1739047754045,0.28231284,96517.0,96516.0,0.0001067]
[1739047758239,0.37531101,96517.0,96516.0,0.0001067]
[1739047770776,0.55632409,96517.0,96516.0,0.0001067]